bitfinex/quotes_SOLUSD_20250823
["timestamp","ask_amount","ask_price","bid_price","bid_amount"]
[1755923560424,43.16,200.27,200.26,18.08994984]
[1755923560629,0.72,200.29,200.27,10.0]
[1755923561203,42.4,200.28,200.27,10.0]
[1755923561398,0.72,200.28,200.27,10.0]
[1755923561828,43.08,200.28,200.27,10.0]
[1755923562040,0.72,200.28,200.27,10.0]
[1755923562215,43.08,200.28,200.27,10.0]
[1755923562413,43.08,200.28,200.25,14.994377]
[1755923562414,36.04,200.3,200.29,10.0]
[1755923562726,79.1,200.3,200.29,10.0]
[1755923562927,36.76,200.3,200.29,10.0]
[1755923563127,78.4,200.3,200.29,10.0]
[1755923563328,78.38,200.3,200.29,10.0]
[1755923564607,36.04,200.3,200.29,10.0]
[1755923564809,90.17546875,200.3,200.29,10.0]
[1755923566303,85.84455133,200.3,200.29,10.0]
[1755923566504,78.34,200.3,200.29,10.0]
[1755923566908,36.04,200.3,200.29,10.0]
[1755923567228,78.28,200.3,200.29,10.0]
[1755923569009,36.04,200.3,200.29,10.0]
[1755923569331,78.2,200.3,200.29,10.0]
[1755923569709,78.92,200.3,200.29,10.0]
[1755923570209,85.66455133,200.3,200.29,10.0]
[1755923570517,78.92,200.3,200.25,10.0]
[1755923570834,6.74455133,200.27,200.25,10.0]
[1755923571031,42.16,200.26,200.25,10.0]
[1755923571237,48.90455133,200.26,200.25,10.0]
[1755923571534,48.90455133,200.26,200.25,13.58259367]
[1755923571912,6.74455133,200.26,200.25,13.58259367]
[1755923572113,48.86455133,200.26,200.25,13.58259367]
[1755923572514,49.58455133,200.26,200.25,13.58259367]
[1755923573614,49.58455133,200.26,200.25,13.58735283]
[1755923574221,48.86455133,200.26,200.25,13.58735283]
[1755923574629,42.12,200.26,200.25,13.58735283]
[1755923574828,48.86455133,200.26,200.25,13.58735283]
[1755923575241,48.74455133,200.26,200.25,13.58735283]
[1755923575620,42.72,200.26,200.25,13.58735283]
[1755923575820,49.46455133,200.26,200.25,13.61735283]
[1755923577550,41.92,200.26,200.25,13.61735283]
[1755923577737,6.74455133,200.28,200.27,10.0]
[1755923577937,48.68455133,200.28,200.27,13.58735283]
[1755923578277,41.94,200.28,200.27,13.58735283]
[1755923578545,49.35455133,200.28,200.27,13.58735283]
[1755923578727,36.1,200.3,200.27,13.58735283]
[1755923578935,6.74455133,200.28,200.27,10.0]
[1755923579147,6.74455133,200.28,200.27,13.59824375]
[1755923579458,41.9,200.28,200.27,13.59824375]
[1755923579620,6.74455133,200.28,200.27,13.60304173]
[1755923579821,42.55,200.28,200.27,13.60304173]
[1755923580022,49.29455133,200.28,200.27,13.60304173]
[1755923580456,49.29455133,200.28,200.27,3.60304173]
[1755923580955,67.88315512,200.28,200.27,2.88304173]
[1755923581624,67.88315512,200.28,200.25,0.03]
[1755923581825,6.74455133,200.26,200.25,0.03]
[1755923582050,48.60455133,200.26,200.25,0.03]
[1755923582361,49.27455133,200.26,200.25,0.03]
[1755923585344,36.77,200.3,200.26,10.0]
[1755923585664,6.74455133,200.28,200.26,10.0]
[1755923585955,36.77,200.3,200.28,10.0]
[1755923585956,42.84455133,200.3,200.28,10.0]
[1755923586138,46.00331363,200.29,200.28,10.0]
[1755923586641,48.50455133,200.29,200.28,10.0]
[1755923586833,6.74455133,200.29,200.28,10.0]
[1755923587029,48.46455133,200.29,200.28,10.0]
[1755923587231,41.72,200.29,200.28,10.0]
[1755923587436,48.46455133,200.29,200.28,10.0]
[1755923587654,41.72,200.29,200.28,10.0]
[1755923587855,48.46455133,200.29,200.28,10.0]
[1755923588487,41.72,200.29,200.28,10.0]
[1755923588641,41.66,200.29,200.28,10.66]
[1755923589047,41.66,200.29,200.28,10.0]
[1755923589648,36.1,200.3,200.28,10.0]
[1755923589854,36.1,200.3,200.28,10.66]
[1755923590071,41.66,200.29,200.28,10.66]
[1755923590241,41.66,200.29,200.28,10.0]
[1755923590443,36.1,200.3,200.28,10.0]
[1755923590674,41.62,200.29,200.28,10.0]
[1755923590876,36.1,200.3,200.28,10.66]
[1755923591180,41.62,200.29,200.28,10.0]
[1755923592040,49.03455133,200.29,200.28,10.0]
[1755923592271,48.36455133,200.29,200.28,10.0]
[1755923592450,41.62,200.29,200.28,10.0]
[1755923593084,41.62,200.29,200.28,13.65913475]
[1755923593316,48.36455133,200.29,200.28,13.65913475]
[1755923593487,48.42455133,200.29,200.28,13.65913475]
[1755923593650,48.40455133,200.29,200.28,13.65913475]
[1755923593857,48.40455133,200.29,200.28,13.6627565]
[1755923594158,48.38455133,200.29,200.28,13.6627565]
[1755923594786,0.06,200.32,200.29,13.59559401]
[1755923594953,0.67,200.45,200.43,10.0]
[1755923595152,5.02346495,200.58,200.43,13.6627565]
[1755923595153,8.06724039,200.44,200.43,13.6627565]
[1755923595459,50.36724039,200.44,200.43,13.6627565]
[1755923595847,0.65268906,200.44,200.43,13.6627565]
[1755923596051,8.06724039,200.44,200.43,13.6627565]
[1755923596246,42.93268906,200.44,200.43,13.6627565]
[1755923596972,42.93268906,200.44,200.43,13.65506961]
[1755923597208,0.65268906,200.44,200.43,13.65506961]
[1755923597378,42.91268906,200.44,200.43,14.31349804]
[1755923597581,42.91268906,200.44,200.43,22.05553415]
[1755923597793,42.91268906,200.44,200.43,22.05113367]
[1755923598104,0.65268906,200.44,200.43,22.33545681]
[1755923598420,59.37687879,200.44,200.39,10.0]
[1755923598602,11.04989872,200.4,200.39,10.0]
[1755923598788,53.88989872,200.4,200.39,10.66]
[1755923599109,11.04989872,200.4,200.39,10.66]
[1755923599409,53.88989872,200.4,200.39,10.66]
[1755923599575,53.84989872,200.4,200.39,10.0]
[1755923599779,42.8,200.4,200.39,10.0]
[1755923600105,53.84989872,200.4,200.39,10.0]
[1755923602584,0.65268906,200.44,200.42,10.0]
[1755923602907,53.72989872,200.43,200.42,10.0]
[1755923603385,11.04989872,200.43,200.42,10.0]
[1755923603587,53.70989872,200.43,200.42,10.0]
[1755923603904,11.04989872,200.43,200.42,10.0]
[1755923604104,24.93200069,200.55,200.42,10.0]
[1755923604105,0.67,200.54,200.48,10.0]
[1755923604286,11.71989872,200.54,200.48,10.0]
[1755923604486,42.82,200.49,200.48,10.0]
[1755923607282,42.82,200.49,200.48,10.66]
[1755923607484,42.82,200.49,200.48,10.0]
[1755923608582,42.72,200.49,200.48,10.0]
[1755923610187,42.68,200.49,200.48,10.66]
[1755923610595,42.68,200.49,200.48,10.0]
[1755923612000,0.06,200.49,200.48,10.0]
[1755923612198,42.56,200.49,200.48,10.0]
[1755923614388,0.06,200.49,200.48,10.0]
[1755923614613,0.06,200.52,200.51,36.0]
[1755923614813,42.62,200.52,200.51,10.0]
[1755923615710,42.62,200.52,200.51,10.66]
[1755923616017,42.62,200.52,200.51,10.0]
[1755923617394,0.06,200.52,200.51,10.0]
[1755923617602,42.54,200.52,200.51,10.0]
[1755923618900,42.52,200.52,200.51,10.0]
[1755923621429,43.2,200.52,200.51,10.0]
[1755923622127,42.52,200.52,200.51,10.0]
[1755923624102,42.32,200.52,200.51,10.0]
[1755923625928,42.26,200.52,200.51,10.0]
[1755923626128,42.24,200.52,200.51,10.0]
[1755923627025,0.06,200.52,200.51,10.0]
[1755923627232,42.2,200.52,200.51,10.0]
[1755923627912,42.88,200.52,200.51,10.0]
[1755923629534,42.2,200.52,200.51,10.0]
[1755923629905,49.6078039,200.52,200.51,10.0]
[1755923630439,42.88,200.52,200.51,10.0]
[1755923630613,49.6078039,200.52,200.51,10.0]
[1755923633336,49.6078039,200.52,200.49,10.0]
[1755923633636,6.7278039,200.5,200.49,10.0]
[1755923633836,48.6878039,200.5,200.49,10.0]
[1755923634047,49.3678039,200.5,200.49,10.0]
[1755923637414,42.64,200.5,200.49,10.0]
[1755923637617,48.5678039,200.5,200.49,10.0]
[1755923638361,49.2378039,200.5,200.49,10.0]
[1755923639239,42.51,200.5,200.49,10.0]
[1755923639441,49.2378039,200.5,200.49,10.0]
[1755923641047,49.2378039,200.5,200.47,10.0]
[1755923641048,54.22541669,200.5,200.47,10.0]
[1755923641236,6.7278039,200.48,200.46,10.0]
[1755923641439,0.67,200.47,200.46,10.0]
[1755923641640,48.4678039,200.47,200.46,13.58683327]
[1755923641951,48.4678039,200.47,200.46,10.0]
[1755923642647,49.1378039,200.47,200.43,10.03]
[1755923642948,6.7278039,200.44,200.43,0.03]
[1755923643150,48.4478039,200.44,200.43,0.03]
[1755923643334,49.1178039,200.44,200.43,0.03]
[1755923643735,49.1178039,200.44,200.41,0.03]
[1755923643931,6.7278039,200.42,200.41,0.03]
[1755923644250,48.4478039,200.42,200.41,0.03]
[1755923644455,6.7278039,200.44,200.42,10.0]
[1755923644624,49.1178039,200.43,200.42,10.0]
[1755923647361,49.0578039,200.43,200.42,10.0]
[1755923647730,79.0,200.45,200.42,10.0]
[1755923647950,6.7278039,200.43,200.42,10.0]
[1755923648120,7.3978039,200.43,200.42,10.0]
[1755923648322,7.3978039,200.43,200.41,0.03]
[1755923648647,49.0778039,200.42,200.41,0.03]
[1755923648846,42.35,200.42,200.41,0.03]
[1755923649045,79.0,200.44,200.42,10.0]
[1755923649046,6.7278039,200.43,200.42,10.0]
[1755923649230,48.3878039,200.43,200.42,10.0]
[1755923650421,48.3678039,200.43,200.42,10.0]
[1755923652143,6.7278039,200.43,200.42,10.0]
[1755923652354,48.3678039,200.43,200.42,10.0]
[1755923653026,6.7278039,200.46,200.45,10.0]
[1755923653234,48.2878039,200.46,200.45,10.0]
[1755923654245,48.9578039,200.46,200.45,10.0]
[1755923655661,41.56,200.46,200.45,10.0]
[1755923655831,48.2878039,200.46,200.45,10.0]
[1755923656527,48.2078039,200.46,200.45,10.0]
[1755923657132,48.8778039,200.46,200.45,10.0]
[1755923657449,48.8778039,200.46,200.43,10.0]
[1755923657651,6.7278039,200.44,200.43,10.0]
[1755923657834,48.1678039,200.44,200.43,10.0]
[1755923658033,48.8378039,200.44,200.43,10.0]
[1755923658338,48.1678039,200.44,200.43,10.0]
[1755923660333,35.96,200.49,200.43,10.0]
[1755923660540,41.36,200.48,200.46,10.0]
[1755923660839,41.42,200.47,200.46,10.67]
[1755923662765,6.7278039,200.49,200.46,10.67]
[1755923662766,0.06,200.51,200.48,10.0]
[1755923662938,41.42,200.5,200.48,10.0]
[1755923663139,41.42,200.5,200.48,10.67]
[1755923663869,0.06,200.51,200.48,10.0]
[1755923664054,0.06,200.51,200.5,10.0]
[1755923664249,41.4,200.51,200.5,10.0]
[1755923664448,41.4,200.51,200.5,9.78524506]
[1755923664638,41.4,200.51,200.5,10.45524506]
[1755923666469,41.36,200.51,200.5,10.45524506]
[1755923670447,0.06,200.51,200.5,10.45524506]
[1755923670951,41.24,200.51,200.5,9.78524506]
[1755923672762,41.22,200.51,200.5,9.78524506]
[1755923672953,0.06,200.51,200.5,9.78524506]
[1755923673152,41.16,200.51,200.5,9.78524506]
[1755923674176,0.69,200.69,200.68,9.78524506]
[1755923674369,7.4178039,200.69,200.68,9.78524506]
[1755923674551,48.9378039,200.69,200.68,9.78524506]
[1755923674943,4.98156819,200.74,200.68,9.78524506]
[1755923675165,0.69,200.74,200.73,9.78524506]
[1755923675467,42.19,200.74,200.73,9.78524506]
[1755923675846,41.69,200.74,200.73,9.78524506]
[1755923676047,10.822657,200.85,200.75,9.78524506]
[1755923676247,6.7278039,200.76,200.75,9.78524506]
[1755923676449,48.3078039,200.76,200.75,9.78524506]
[1755923677153,41.58,200.76,200.75,9.78524506]
[1755923677453,48.3078039,200.76,200.73,9.78524506]
[1755923677661,41.58,200.76,200.75,9.78524506]
[1755923677973,42.27,200.76,200.75,9.78524506]
[1755923678170,47.25114415,200.76,200.71,9.78524506]
[1755923678468,0.69,200.75,200.71,9.78524506]
[1755923678678,0.69,200.75,200.73,9.78524506]
[1755923678864,6.7278039,200.74,200.73,9.78524506]
[1755923679177,0.69,200.75,200.73,9.78524506]
[1755923679371,6.7878039,200.74,200.73,9.78524506]
[1755923680152,0.06,200.74,200.73,9.78524506]
[1755923680378,48.2878039,200.74,200.73,9.78524506]
[1755923680556,42.25,200.74,200.73,9.78524506]
[1755923680759,48.2878039,200.74,200.73,9.78524506]
[1755923681679,48.2278039,200.74,200.73,9.78524506]
[1755923681982,48.9178039,200.74,200.73,9.78524506]
[1755923682456,48.9178039,200.74,200.71,9.78524506]
[1755923682776,0.69,200.73,200.71,9.78524506]
[1755923682985,6.7278039,200.72,200.71,9.78524506]
[1755923683182,7.4178039,200.72,200.71,9.78524506]
[1755923683851,14.1456078,200.72,200.67,9.78524506]
[1755923684053,6.7278039,200.68,200.65,9.78524506]
[1755923684253,6.7278039,200.66,200.65,9.78524506]
[1755923684791,7.4178039,200.66,200.65,9.78524506]
[1755923684950,41.4,200.67,200.65,9.78524506]
[1755923685284,6.7278039,200.66,200.65,9.78524506]
[1755923686465,7.4178039,200.66,200.65,9.78524506]
[1755923687065,12.40135817,200.66,200.62,9.78524506]
[1755923687285,0.69,200.65,200.62,9.78524506]
[1755923687460,0.69,200.68,200.64,9.78524506]
[1755923687769,6.7278039,200.65,200.64,9.78524506]
[1755923687969,41.32,200.67,200.64,9.78524506]
[1755923688371,5.67309581,200.68,200.64,9.78524506]
[1755923688593,41.3,200.67,200.64,9.78524506]
[1755923688884,41.3,200.67,200.66,9.78524506]
[1755923689187,48.0278039,200.67,200.66,9.78524506]
[1755923689379,6.7278039,200.67,200.66,9.78524506]
[1755923689686,47.9878039,200.67,200.66,9.78524506]
[1755923692081,48.6778039,200.67,200.66,9.78524506]
[1755923692277,53.66110982,200.67,200.66,9.78524506]
[1755923693089,46.93330592,200.67,200.64,9.78524506]
[1755923693307,6.7278039,200.65,200.61,9.78524506]
[1755923693510,41.85,200.64,200.63,9.78524506]
[1755923694485,46.83405103,200.64,200.61,9.78524506]
[1755923694684,6.7278039,200.62,200.61,9.78524506]
[1755923694884,47.8878039,200.62,200.61,9.78524506]
[1755923696091,47.8878039,200.62,200.61,9.81524506]
[1755923696666,6.7278039,200.62,200.61,9.81524506]
[1755923696883,47.8478039,200.62,200.61,9.81524506]
[1755923697086,4.98405103,200.64,200.61,9.81524506]
[1755923697298,6.7278039,200.62,200.61,10.48524506]
[1755923697469,6.7278039,200.62,200.61,9.81524506]
[1755923698202,41.1,200.63,200.61,9.81524506]
[1755923698371,6.7278039,200.62,200.61,9.81524506]
[1755923698571,35.94,200.67,200.61,14.09835735]
[1755923698866,35.94,200.67,200.65,9.78524506]
[1755923698867,41.06,200.66,200.65,9.78524506]
[1755923699075,41.06,200.66,200.65,10.45524506]
[1755923699507,41.08,200.66,200.65,10.45524506]
[1755923700195,47.8078039,200.66,200.65,9.78524506]
[1755923700397,48.5078039,200.66,200.65,9.78524506]
[1755923700562,53.49135817,200.66,200.65,9.78524506]
[1755923701988,53.47135817,200.66,200.65,9.78524506]
[1755923702361,41.06,200.66,200.65,9.78524506]
[1755923702572,47.7878039,200.66,200.65,9.78524506]
[1755923702986,52.77135817,200.66,200.65,9.78524506]
[1755923703594,53.47135817,200.66,200.65,9.78524506]
[1755923705194,46.04355427,200.66,200.65,9.78524506]
[1755923705394,52.77135817,200.66,200.65,9.78524506]
[1755923705580,52.77135817,200.66,200.63,9.78524506]
[1755923705880,6.7278039,200.64,200.63,9.78524506]
[1755923706081,47.6878039,200.64,200.63,9.78524506]
[1755923706894,4.98355427,200.66,200.63,10.45524506]
[1755923707076,40.94,200.65,200.64,0.67]
[1755923707393,40.94,200.65,200.63,9.78524506]
[1755923707394,47.6478039,200.65,200.63,9.78524506]
[1755923707568,6.7278039,200.64,200.63,9.78524506]
[1755923707770,6.7278039,200.64,200.63,14.0839506]
[1755923708471,47.6678039,200.64,200.63,14.0839506]
[1755923708670,47.6478039,200.64,200.63,14.0839506]
[1755923708894,6.7278039,200.64,200.63,14.0839506]
[1755923709193,47.6478039,200.64,200.63,14.0839506]
[1755923709397,47.6478039,200.64,200.63,13.4139506]
[1755923709696,47.6278039,200.64,200.63,13.4139506]
[1755923710087,40.9,200.64,200.63,14.0839506]
[1755923710287,79.0,200.66,200.63,14.0839506]
[1755923710288,0.06,200.74,200.72,9.78524506]
[1755923710470,47.6278039,200.73,200.72,9.78524506]
[1755923711864,47.6078039,200.73,200.72,9.78524506]
[1755923713370,0.06,200.74,200.72,9.78524506]
[1755923713574,0.06,200.74,200.73,4.30043529]
[1755923713771,40.94,200.74,200.73,0.67]
[1755923713976,40.94,200.74,200.73,4.29965738]
[1755923714597,40.94,200.74,200.73,3.62965738]
[1755923714895,40.94,200.74,200.73,4.29965738]
[1755923715099,40.92,200.74,200.73,4.29965738]
[1755923716277,0.06,200.74,200.73,4.29965738]
[1755923716488,40.88,200.74,200.73,4.29965738]
[1755923717283,0.06,200.74,200.73,4.29965738]
[1755923717486,40.86,200.74,200.73,4.29965738]
[1755923717689,40.86,200.74,200.73,11.02746128]
[1755923719003,0.06,200.74,200.73,11.02746128]
[1755923719191,40.86,200.74,200.73,11.31178442]
[1755923719392,0.06,200.74,200.73,4.58398052]
[1755923719597,40.84,200.74,200.73,11.31178442]
[1755923719989,0.06,200.74,200.73,11.31178442]
[1755923720306,40.84,200.74,200.73,11.31178442]
[1755923720803,4.97862005,200.86,200.73,11.31178442]
[1755923720804,0.7,200.92,200.9,9.78524506]
[1755923720989,6.7278039,200.91,200.9,9.78524506]
[1755923721191,48.4278039,200.91,200.9,9.78524506]
[1755923721407,47.7278039,200.91,200.9,9.78524506]
[1755923721588,0.7,200.96,200.88,17.18304896]
[1755923721787,41.0,200.95,200.91,9.78524506]
[1755923722087,0.7,200.94,200.91,9.78524506]
[1755923722284,0.06,200.96,200.95,9.78524506]
[1755923722487,41.06,200.96,200.95,9.78524506]
[1755923722806,47.9878039,200.96,200.95,9.78524506]
[1755923723098,37.9878039,200.96,200.91,9.78524506]
[1755923723272,6.7278039,200.92,200.91,9.78524506]
[1755923723476,48.7478039,200.92,200.91,9.78524506]
[1755923723676,48.7478039,200.92,200.86,9.78524506]
[1755923723874,6.7278039,200.87,200.86,9.78524506]
[1755923724094,41.3,200.87,200.86,9.78524506]
[1755923724481,41.3,200.87,200.86,10.45524506]
[1755923724695,6.7278039,200.89,200.86,10.45524506]
[1755923724903,41.3,200.88,200.86,10.45524506]
[1755923725120,6.7278039,200.89,200.88,9.78524506]
[1755923725324,0.7,200.98,200.9,9.78524506]
[1755923725481,41.34,200.97,200.95,9.78524506]
[1755923726113,48.0678039,200.97,200.95,9.78524506]
[1755923726695,41.34,200.97,200.95,9.78524506]
[1755923726922,0.7,201.1,201.07,9.78524506]
[1755923727087,1.21262398,201.12,201.07,9.78524506]
[1755923727289,6.7278039,201.09,201.07,9.34415152]
[1755923727609,49.0378039,201.08,201.07,9.34415152]
[1755923727792,41.64,201.08,201.07,9.34415152]
[1755923728000,48.3678039,201.08,201.07,9.34415152]
[1755923728208,0.69,201.11,201.07,9.34415152]
[1755923728209,6.7278039,201.09,201.07,9.34415152]
[1755923728432,52.62128939,201.08,201.07,9.34415152]
[1755923728623,41.64,201.08,201.07,9.34415152]
[1755923729312,52.62128939,201.08,201.07,9.34415152]
[1755923729500,53.31128939,201.08,201.07,9.34415152]
[1755923729702,42.33,201.08,201.07,9.34415152]
[1755923729896,53.31128939,201.08,201.07,9.34415152]
[1755923730424,52.62128939,201.08,201.07,9.34415152]
[1755923730716,1.21262398,201.12,201.11,9.34415152]
[1755923730900,42.85262398,201.12,201.11,9.34415152]
[1755923731100,53.83391337,201.12,201.11,9.34415152]
[1755923731597,42.85262398,201.12,201.11,9.34415152]
[1755923732111,0.6012185,201.13,201.12,16.19648882]
[1755923732112,0.2912185,201.13,201.12,16.19648882]
[1755923732338,0.69,201.26,201.12,95.71657658]
[1755923732519,10.98129,201.38,201.25,10.98128939]
[1755923732838,10.98128939,201.3,201.29,9.34415152]
[1755923733150,53.59128939,201.3,201.26,9.34415152]
[1755923733314,0.69,201.29,201.28,9.34415152]
[1755923733502,11.67128939,201.29,201.28,9.34415152]
[1755923733702,0.69,201.29,201.28,9.34415152]
[1755923733951,53.59128939,201.29,201.28,9.34415152]
[1755923734320,53.59128939,201.29,201.22,10.98128939]
[1755923734321,11.67128939,201.33,201.31,9.34415152]
[1755923734643,53.77128939,201.32,201.31,9.34415152]
[1755923734938,46.86128939,201.44,201.31,9.34415152]
[1755923734939,0.69,201.39,201.38,9.34415152]
[1755923735144,0.69,201.43,201.41,9.34415152]
[1755923735330,54.03128939,201.42,201.39,9.34415152]
[1755923735522,0.69,201.41,201.39,9.34415152]
[1755923735721,10.98128939,201.42,201.41,9.34415152]
[1755923736045,42.34,201.42,201.41,9.34415152]
[1755923736534,42.34,201.42,201.37,10.98128939]
[1755923736535,5.56475773,201.47,201.42,9.34415152]
[1755923736736,10.98128939,201.43,201.42,9.34415152]
[1755923737116,11.67128939,201.43,201.42,9.34415152]
[1755923737441,53.99128939,201.43,201.42,9.34415152]
[1755923737814,53.99128939,201.43,201.4,9.34415152]
[1755923738038,10.98128939,201.41,201.4,9.34415152]
[1755923738510,10.98128939,201.41,201.31,0.14216157]
[1755923738511,26.0,201.36,201.07,0.03]
[1755923738848,10.98128939,201.17,201.09,0.72]
[1755923739136,26.0,201.26,201.09,0.72]
[1755923739137,10.98128939,201.19,201.09,0.72]
[1755923739442,43.34,201.18,201.13,10.98128939]
[1755923739643,54.32128939,201.18,201.14,0.72]
[1755923739808,10.98128939,201.17,201.11,10.98128939]
[1755923740129,10.98128939,201.17,201.15,0.72]
[1755923740437,15.7589772,201.17,201.16,0.72]
[1755923741012,43.26,201.17,201.16,0.72]
[1755923741205,59.0189772,201.17,201.13,0.72]
[1755923741406,15.7589772,201.16,201.14,0.72]
[1755923741701,15.7589772,201.16,201.1,26.0]
[1755923741902,43.24,201.17,201.1,0.72]
[1755923741903,15.7589772,201.15,201.1,0.72]
[1755923742632,15.7589772,201.16,201.11,0.28432314]
[1755923742933,15.7589772,201.16,201.12,0.72]
[1755923743126,15.7589772,201.16,201.13,0.72]
[1755923743326,14.315594,201.3,201.18,26.0]
[1755923743508,15.7589772,201.28,201.19,0.72]
[1755923743833,15.7589772,201.25,201.19,16.4789772]
[1755923744033,15.7589772,201.26,201.19,16.4789772]
[1755923744205,43.64,201.27,201.21,15.7589772]
[1755923744532,15.7589772,201.24,201.19,0.72]
[1755923744710,15.7589772,201.23,201.17,15.7589772]
[1755923744909,59.4789772,201.22,201.16,0.72]
[1755923745110,43.72,201.21,201.16,16.4789772]
[1755923745303,0.69,201.32,201.21,13.59559401]
[1755923745617,15.7589772,201.35,201.25,26.0]
[1755923745951,43.82,201.31,201.27,15.7589772]
[1755923746301,15.7589772,201.34,201.23,0.14216157]
[1755923746302,43.82,201.3,201.29,15.7589772]
[1755923746506,40.80501847,201.41,201.29,16.4789772]
[1755923746507,0.69,201.39,201.29,16.4789772]
[1755923746730,35.84,201.41,201.35,15.7589772]
[1755923746907,43.86,201.4,201.36,15.7589772]
[1755923747104,43.86,201.4,201.36,16.4789772]
[1755923747519,43.86,201.4,201.36,0.72]
[1755923748645,14.909425,201.53,201.35,15.7589772]
[1755923748646,0.6012185,201.81,201.43,44.91]
[1755923748854,0.69,201.64,201.56,15.7589772]
[1755923749151,15.7589772,201.58,201.49,15.7589772]
[1755923749448,15.7589772,201.56,201.44,26.0]
[1755923749663,15.7589772,201.53,201.46,15.7589772]
[1755923749833,15.7589772,201.51,201.37,14.893142]
[1755923750027,15.7589772,201.47,201.4,15.7589772]
[1755923750228,61.0389772,201.46,201.34,14.893142]
[1755923750450,0.69,201.49,201.43,15.7589772]
[1755923750641,15.7589772,201.52,201.35,0.49664762]
[1755923750842,0.69,201.69,201.51,15.7589772]
[1755923751143,0.69,201.69,201.45,26.0]
[1755923751144,15.7589772,201.61,201.45,26.0]
[1755923751344,15.7589772,201.59,201.52,15.7589772]
[1755923751514,46.12,201.58,201.52,15.7589772]
[1755923751938,46.12,201.58,201.45,26.0]
[1755923752129,46.12,201.58,201.53,15.7589772]
[1755923752438,0.69,201.66,201.57,15.7589772]
[1755923752642,46.06,201.65,201.63,15.7589772]
[1755923753118,46.06,201.65,201.58,26.0]
[1755923753313,46.06,201.65,201.63,15.7589772]
[1755923754241,0.06,201.66,201.63,15.7589772]
[1755923754442,45.98,201.64,201.63,15.7589772]
[1755923755026,45.98,201.64,201.58,26.0]
[1755923755224,45.98,201.64,201.63,15.7589772]
[1755923755750,45.98,201.64,201.58,26.0]
[1755923755969,45.98,201.64,201.6,15.7589772]
[1755923756246,0.69,201.63,201.6,15.7589772]
[1755923757446,0.69,201.63,201.52,14.891663]
[1755923757447,0.7,201.62,201.52,26.0]
[1755923757638,15.7589772,201.61,201.49,14.893881]
[1755923757827,0.7,201.6,201.54,15.7589772]
[1755923758028,16.4589772,201.6,201.54,15.7589772]
[1755923758244,0.7,201.6,201.54,15.7589772]
[1755923758431,0.7,201.6,201.56,15.7589772]
[1755923758637,0.06,201.66,201.6,13.59559401]
[1755923758843,0.06,201.66,201.59,15.7589772]
[1755923758844,0.06,201.66,201.65,15.7589772]
[1755923759842,0.06,201.66,201.61,0.28432314]
[1755923760044,0.06,201.66,201.64,15.7589772]
[1755923760243,0.76,201.66,201.62,15.7589772]
[1755923760756,0.76,201.66,201.6,15.7589772]
[1755923760757,0.7,201.65,201.6,15.7589772]
[1755923760926,0.7,201.65,201.48,0.49632717]
[1755923760927,0.06,201.66,201.64,15.7589772]
[1755923761123,45.96,201.66,201.65,15.7589772]
[1755923761526,62.4189772,201.66,201.51,13.59559401]
[1755923761732,15.7589772,201.64,201.57,15.7589772]
[1755923761935,16.4589772,201.63,201.56,15.7589772]
[1755923762138,0.7,201.63,201.58,15.7589772]
[1755923762360,0.7,201.62,201.5,13.59559401]
[1755923762584,0.7,201.62,201.56,15.7589772]
[1755923762775,0.7,201.62,201.47,13.59559401]
[1755923763079,0.7,201.62,201.57,15.7589772]
[1755923763480,15.7589772,201.6,201.45,10.0]
[1755923763640,45.84,201.59,201.54,15.7589772]
[1755923763841,0.7,201.58,201.54,15.7589772]
[1755923764065,0.7,201.58,201.53,15.7589772]
[1755923764388,16.4589772,201.57,201.43,13.59559401]